fUSD/lending_fUSD_20240425
["ID","MTS","AMOUNT","RATE_DAILY","PERIOD"]
[323488877,1714047051975,-2548.1,0.0001272,2]
[323488878,1714047051984,-500.0,0.0001272,2]
[323488879,1714047051994,-500.0,0.0001272,2]
[323488880,1714047052006,-500.0,0.0001272,2]
[323488881,1714047052015,-571.43,0.0001272,2]
[323488882,1714047052024,-500.0,0.0001272,2]
[323488883,1714047052033,-500.0,0.0001272,2]
[323488884,1714047052042,-500.0,0.0001272,2]
[323488885,1714047052052,-15680.37,0.0001272,2]
[323488886,1714047052061,-500.0,0.0001272,2]
[323488887,1714047052071,-5249.74,0.0001272,2]
[323488888,1714047052081,-1528.45,0.0001272,2]
[323488889,1714047052090,-626.8,0.0001272,2]
[323488890,1714047052100,-500.0,0.0001272,2]
[323488891,1714047052110,-1181.11,0.0001272,2]
[323488892,1714047052119,-500.0,0.0001272,2]
[323488893,1714047052129,-300.0,0.0001272,2]
[323488894,1714047052139,-300.0,0.0001272,2]
[323488895,1714047052148,-300.0,0.0001272,2]
[323488896,1714047052158,-500.0,0.00012721,2]
[323488897,1714047052167,-259.2,0.00012721,2]
[323488898,1714047052177,-500.0,0.00012721,2]
[323488899,1714047052186,-500.0,0.00012721,2]
[323488900,1714047052196,-500.0,0.00012721,2]
[323488901,1714047052206,-500.0,0.00012721,2]
[323488902,1714047052215,-500.0,0.00012721,2]
[323488903,1714047052225,-500.0,0.00012721,2]
[323488904,1714047052235,-500.0,0.00012721,2]
[323488905,1714047052249,-414.41414257,0.00012721,2]
[323488906,1714047052259,-500.0,0.00012721,2]
[323488907,1714047052270,-500.0,0.00012721,2]
[323488908,1714047052279,-566.0,0.00012721,2]
[323488909,1714047052289,-413.94,0.00012721,2]
[323488910,1714047052299,-500.0,0.00012721,2]
[323488911,1714047052309,-500.0,0.00012721,2]
[323488912,1714047052319,-608.48813691,0.00012721,2]
[323488913,1714047052330,-500.0,0.00012721,2]
[323488914,1714047052339,-500.0,0.00012721,2]
[323488915,1714047052349,-500.0,0.00012721,2]
[323488916,1714047052358,-500.0,0.00012721,2]
[323488917,1714047052367,-500.0,0.00012721,2]
[323488918,1714047052376,-500.0,0.00012721,2]
[323488919,1714047052385,-500.0,0.00012721,2]
[323488920,1714047052395,-500.0,0.00012721,2]
[323488921,1714047052404,-523.55,0.00012721,2]
[323488922,1714047052415,-500.0,0.00012721,2]
[323488923,1714047052424,-500.0,0.00012721,2]
[323488924,1714047052433,-500.0,0.00012721,2]
[323488925,1714047052443,-500.0,0.00012721,2]
[323488926,1714047052452,-551.19,0.00012721,2]
[323488927,1714047052462,-500.0,0.00012721,2]
[323488928,1714047052471,-500.0,0.00012721,2]
[323488929,1714047052480,-500.0,0.00012721,2]
[323488930,1714047052490,-500.0,0.00012721,2]
[323488931,1714047052502,-500.0,0.00012721,2]
[323488932,1714047052512,-526.91868834,0.00012721,2]
[323488933,1714047052521,-500.0,0.00012721,2]
[323488934,1714047052531,-500.0,0.00012721,2]
[323488935,1714047052540,-500.0,0.00012721,2]
[323488936,1714047052549,-500.0,0.00012721,2]
[323488937,1714047052558,-500.0,0.00012721,2]
[323488938,1714047052568,-500.0,0.00012721,2]
[323488939,1714047052577,-500.0,0.00012721,2]
[323488940,1714047052586,-612.87033566,0.00012721,2]
[323488941,1714047052595,-500.0,0.00012721,2]
[323488942,1714047052604,-500.0,0.00012721,2]
[323488943,1714047052614,-500.0,0.00012721,2]
[323488944,1714047052623,-500.0,0.00012721,2]
[323488945,1714047052632,-500.0,0.00012721,2]
[323488946,1714047052641,-500.0,0.00012721,2]
[323488947,1714047052650,-822.72,0.00012721,2]
[323488948,1714047052660,-500.0,0.00012721,2]
[323488949,1714047052669,-500.0,0.00012721,2]
[323488950,1714047052679,-500.0,0.00012721,2]
[323488951,1714047052689,-500.0,0.00012721,2]
[323488952,1714047052698,-1492.13,0.00012721,2]
[323488953,1714047052709,-500.0,0.00012721,2]
[323488954,1714047052718,-500.0,0.00012721,2]
[323488955,1714047052728,-536.83203592,0.00012721,2]
[323488956,1714047052738,-500.0,0.00012721,2]
[323488957,1714047052748,-500.0,0.00012721,2]
[323488958,1714047052758,-500.0,0.00012721,2]
[323488959,1714047052767,-1190.21,0.00012721,2]
[323488960,1714047052776,-500.0,0.00012721,2]
[323488961,1714047052786,-500.0,0.00012721,2]
[323488962,1714047052795,-500.0,0.00012721,2]
[323488963,1714047052805,-500.0,0.00012721,2]
[323488964,1714047052817,-765.63,0.00012721,2]
[323488965,1714047052827,-500.0,0.00012721,2]
[323488966,1714047052838,-500.0,0.00012721,2]
[323488967,1714047052848,-500.0,0.00012721,2]
[323488968,1714047052857,-909.29,0.00012721,2]
[323488969,1714047052867,-500.0,0.00012721,2]
[323488970,1714047052876,-500.0,0.00012721,2]
[323488971,1714047052886,-500.0,0.00012721,2]
[323488972,1714047052896,-500.0,0.00012721,2]
[323488973,1714047052906,-500.0,0.00012721,2]
[323488974,1714047052915,-532.73,0.00012721,2]
[323488975,1714047052924,-500.0,0.00012721,2]
[323488976,1714047052935,-500.0,0.00012721,2]
[323488977,1714047052944,-969.3,0.00012721,2]
[323488978,1714047052953,-472.58,0.00012721,2]
[323488979,1714047052963,-500.0,0.00012721,2]
[323488980,1714047052973,-577.86,0.00012721,2]
[323488981,1714047052982,-500.0,0.00012721,2]
[323488982,1714047052992,-500.0,0.00012721,2]
[323488983,1714047053002,-500.0,0.00012721,2]
[323488984,1714047053012,-500.0,0.00012721,2]
[323488985,1714047053021,-500.0,0.00012721,2]
[323488986,1714047053030,-500.0,0.00012721,2]
[323488987,1714047053040,-525.45,0.00012721,2]
[323488988,1714047053050,-500.0,0.00012721,2]
[323488989,1714047053059,-3506.41,0.00012721,2]
[323488990,1714047053068,-500.0,0.00012721,2]
[323488991,1714047053077,-1465.16,0.00012721,2]
[323488992,1714047053088,-500.0,0.00012721,2]
[323488993,1714047053097,-158.56241699,0.00012721,2]
[323488994,1714047053106,-500.0,0.00012721,2]
[323488995,1714047053116,-1346.08,0.00012721,2]
[323488996,1714047053125,-500.0,0.00012721,2]
[323488997,1714047053134,-16791.44,0.00012721,2]
[323488998,1714047053144,-1877.09,0.00012721,2]
[323488999,1714047053153,-500.0,0.00012721,2]
[323489000,1714047053163,-500.0,0.00012721,2]
[323489001,1714047053172,-500.0,0.00012721,2]
[323489002,1714047053181,-500.0,0.00012721,2]
[323489003,1714047053190,-500.0,0.00012721,2]
[323489004,1714047053199,-500.0,0.00012721,2]
[323489005,1714047053208,-500.0,0.00012721,2]
[323489006,1714047053218,-3607.78,0.00012721,2]
[323489007,1714047053232,-1418.69,0.00012721,2]
[323489008,1714047053241,-373.56577801,0.00012721,2]
[323489009,1714047053253,-500.0,0.00012721,2]
[323489010,1714047053262,-1028.67,0.00012721,2]
[323489011,1714047053273,-2556.12,0.00012721,2]
[323489012,1714047053282,-500.0,0.00012721,2]
[323489013,1714047053292,-500.0,0.00012721,2]
[323489014,1714047053301,-500.0,0.00012721,2]
[323489015,1714047053311,-500.0,0.00012721,2]
[323489016,1714047053321,-500.0,0.00012721,2]
[323489017,1714047053330,-500.0,0.00012721,2]
[323489018,1714047053340,-504.59,0.00012721,2]
[323489019,1714047053349,-500.0,0.00012721,2]
[323489020,1714047053359,-500.0,0.00012721,2]
[323489021,1714047053369,-500.0,0.00012721,2]
[323489022,1714047053378,-500.0,0.00012721,2]
[323489023,1714047053388,-628.28876146,0.00012721,2]
[323489024,1714047053398,-1203.87,0.00012721,2]
[323489025,1714047053408,-500.0,0.00012721,2]
[323489026,1714047053418,-500.0,0.00012721,2]
[323489027,1714047053427,-500.0,0.00012721,2]
[323489028,1714047053437,-500.0,0.00012721,2]
[323489029,1714047053446,-608.0,0.00012747,2]
[323489030,1714047053456,-150.0,0.0001275,2]
[323489031,1714047053466,-150.0,0.00012778,2]
[323489032,1714047053476,-4455.93261915,0.00012792,2]
[323489033,1714047053485,-1000.0,0.00012794,2]
[323489034,1714047053495,-500.0,0.00012794,2]
[323489035,1714047053509,-1000.0,0.00012795,2]
[323489036,1714047053519,-1000.0,0.00012795,2]
[323489037,1714047053528,-500.0,0.00012795,2]
[323489038,1714047053538,-500.0,0.00012795,2]
[323489039,1714047053603,-150.0,0.00012795,2]
[323489040,1714047053612,-18392.20664033,0.000128,2]
[323489041,1714047053622,-2503.83332814,0.000128,2]
[323489042,1714047053631,-591.61243929,0.00012808,2]
[323489043,1714047053640,-500.0,0.00012808,2]
[323489044,1714047053650,-431.11526608,0.00012808,2]
[323489045,1714047053659,-500.0,0.00012808,2]
[323489046,1714047053669,-505.58,0.00012808,2]
[323489047,1714047053678,-500.0,0.00012808,2]
[323489048,1714047053687,-500.0,0.00012808,2]
[323489049,1714047053697,-3922.16,0.00012809,2]
[323489050,1714047053706,-504.4,0.00012809,2]
[323489051,1714047053715,-500.0,0.00012809,2]
[323489052,1714047053724,-500.0,0.00012809,2]
[323489053,1714047053733,-500.0,0.00012809,2]
[323489054,1714047053742,-500.0,0.00012809,2]
[323489055,1714047053755,-500.0,0.00012809,2]
[323489056,1714047053765,-599.4,0.00012809,2]
[323489057,1714047053774,-500.0,0.00012809,2]
[323489058,1714047053783,-500.0,0.00012809,2]
[323489059,1714047053792,-527.27,0.00012809,2]
[323489060,1714047053801,-500.0,0.00012809,2]
[323489061,1714047053810,-500.0,0.00012809,2]
[323489062,1714047053819,-500.0,0.00012809,2]
[323489063,1714047053829,-500.0,0.00012809,2]
[323489064,1714047053838,-633.18,0.00012809,2]
[323489065,1714047053847,-544.47,0.00012809,2]
[323489066,1714047053856,-500.0,0.00012809,2]
[323489067,1714047053865,-552.65513222,0.00012809,2]
[323489068,1714047053874,-500.0,0.00012809,2]
[323489069,1714047053883,-611.62,0.00012809,2]
[323489070,1714047053892,-622.64,0.00012809,2]
[323489071,1714047053901,-500.0,0.00012809,2]
[323489072,1714047053910,-150.0,0.00012837,2]
[323489073,1714047053919,-150.0,0.00012837,2]
[323489074,1714047053928,-150.0,0.00012837,2]
[323489075,1714047053938,-2503.83332813,0.0001285,2]
[323489076,1714047053946,-153.11178116,0.00012876,2]
[323489077,1714047053955,-814.49724723,0.00012889,2]
[323489078,1714047053964,-1454.8721965,0.00012889,2]
[323489079,1714047053973,-2719.4174381,0.00012889,2]
[323489080,1714047053982,-12097.8746051,0.00012889,2]
[323489081,1714047053991,-3421.5298044,0.00012889,2]
[323489082,1714047054003,-16159.87853711,0.00012898,2]
[323489083,1714047054013,-3327.20169358,0.00012898,2]
[323489084,1714047054021,-455.63911956,0.00012898,2]
[323489085,1714047054030,-300.0,0.00012899,2]
[323489086,1714047054039,-300.0,0.00012899,2]
[323489087,1714047054048,-300.0,0.00012899,2]
[323489088,1714047054058,-1301.21258502,0.00012899,2]
[323489089,1714047054066,-1441.96125,0.00012899,2]
[323489090,1714047054075,-24270.42586215,0.000129,5]
[323489091,1714047054327,-763.88175744,0.000129,5]
[323489092,1714047174236,-150.0,0.00011798,2]
[323489093,1714047174390,500.0,0.00011797,2]
[323489094,1714047185733,-4000.0,0.00011799,2]
[323489095,1714047187223,176.93,9.896e-05,2]
[323489096,1714047187251,-4000.0,0.00011799,2]
[323489097,1714047187814,-4000.0,0.00011799,2]
[323489098,1714047188403,-4000.0,0.00011799,2]
[323489099,1714047188453,-4000.0,0.00011799,2]
[323489100,1714047188790,-4000.0,0.00011799,2]
[323489101,1714047189359,-4000.0,0.00011799,2]
[323489102,1714047189697,-4000.0,0.00011799,2]
[323489103,1714047190285,-4000.0,0.00011799,2]
[323489104,1714047190585,-4000.0,0.00011799,2]
[323489105,1714047191221,-4000.0,0.00011799,2]
[323489106,1714047191536,-4000.0,0.00011799,2]
[323489107,1714047191861,-4000.0,0.00011799,2]
[323489108,1714047192184,-4000.0,0.00011799,2]
[323489109,1714047192777,-4000.0,0.00011799,2]
[323489110,1714047193329,-4000.0,0.00011799,2]
[323489111,1714047193653,-4000.0,0.00011799,2]
[323489112,1714047193967,-4000.0,0.00011799,2]
[323489113,1714047194463,-4000.0,0.00011799,2]
[323489114,1714047194631,-4000.0,0.00011799,2]
[323489115,1714047195022,-4000.0,0.00011799,2]
[323489116,1714047195636,-4000.0,0.00011799,2]
[323489117,1714047196249,-4000.0,0.00011799,2]
[323489118,1714047196490,-4000.0,0.00011799,2]
[323489119,1714047197203,-4000.0,0.00011799,2]
[323489120,1714047222366,-4000.0,0.00011799,2]
[323489121,1714047222780,-4000.0,0.00011799,2]
[323489122,1714047223154,-4000.0,0.00011799,2]
[323489123,1714047224231,-4000.0,0.00011799,2]
[323489124,1714047224786,-4000.0,0.00011799,2]
[323489125,1714047239013,907.0,0.00011798,2]
[323489126,1714047242912,-4000.0,0.00011799,2]
[323489127,1714047243492,-4000.0,0.00011799,2]
[323489128,1714047244106,-4000.0,0.00011799,2]
[323489129,1714047244727,-4000.0,0.00011799,2]
[323489130,1714047245365,-4000.0,0.00011799,2]
[323489131,1714047261055,154.38,0.00011764,2]
[323489132,1714047271422,527.07691918,0.00011798,2]
[323489133,1714047300936,1584.61308082,0.00011798,2]
[323489134,1714047300961,4000.0,0.00011798,2]
[323489135,1714047300983,4000.0,0.00011798,2]
[323489136,1714047371732,150.0,0.00025111,120]
[323489137,1714048033172,-211.47,9.522e-05,2]
[323489138,1714048033192,-683.11593627,0.00011,2]
[323489139,1714048153039,200.89,9.33e-05,2]
[323489155,1714048234293,-700.0,0.00011208,2]
[323489156,1714048234302,-533.25146559,0.00011209,2]
[323489157,1714048234311,-189.06,0.0001121,2]
[323489158,1714048234320,-3787.22,0.00011212,2]
[323489159,1714048234329,-153.88,0.00011336,2]
[323489160,1714048234339,-224.5,0.00011495,2]
[323489161,1714048234348,-150.0,0.00011589,2]
[323489162,1714048234357,-200.89,0.00011594,2]
[323489163,1714048234366,-156.77121029,0.00011599,2]
[323489164,1714048234375,-574.5515,0.00011699,2]
[323489165,1714048234385,-499.99,0.00011798,2]
[323489166,1714048234394,-1000.0,0.00011798,2]
[323489167,1714048234403,-9405.01260267,0.00011798,2]
[323489168,1714048234413,-36722.62045465,0.00011799,2]
[323489169,1714048234437,-19437.34145639,0.00011799,2]
[323489170,1714048234486,-857.74670121,0.00011799,2]
[323489171,1714048234497,-10111.23617097,0.00011799,2]
[323489172,1714048234508,-13681.79108481,0.00011799,2]
[323489173,1714048234520,-1153.90392012,0.00011799,2]
[323489174,1714048234536,-533.89601185,0.00011799,2]
[323489175,1714048234549,-500.0,0.00011897,2]
[323489176,1714048234558,-2300.49,0.00011897,2]
[323489177,1714048234568,-500.0,0.00011897,2]
[323489178,1714048234577,-500.0,0.00011897,2]
[323489179,1714048234588,-369.52591094,0.00011897,2]
[323489180,1714048234597,-1624.22,0.00011897,2]
[323489181,1714048234607,-991.97,0.00011897,2]
[323489182,1714048234617,-500.0,0.00011897,2]
[323489183,1714048234626,-500.0,0.00011897,2]
[323489184,1714048234637,-3839.55,0.00011897,2]
[323489185,1714048234647,-500.0,0.00011897,2]
[323489186,1714048234657,-202.16837205,0.00011897,2]
[323489187,1714048234666,-500.0,0.00011897,2]
[323489188,1714048234676,-509.55,0.00011897,2]
[323489189,1714048234686,-500.0,0.00011897,2]
[323489190,1714048234699,-910.42,0.00011897,2]
[323489191,1714048234713,-500.0,0.00011897,2]
[323489192,1714048234723,-1989.45970515,0.00011897,2]
[323489193,1714048234736,-7293.70029485,0.00011897,2]
[323489194,1714048234745,-500.0,0.00011897,2]
[323489195,1714048234755,-500.0,0.00011897,2]
[323489196,1714048234765,-500.0,0.00011897,2]
[323489197,1714048234776,-500.0,0.00011897,2]
[323489198,1714048234785,-500.0,0.00011897,2]
[323489199,1714048234795,-1338.53,0.00011897,2]
[323489200,1714048234805,-500.0,0.00011897,2]
[323489201,1714048234814,-500.0,0.00011897,2]
[323489202,1714048234823,-1135.76023419,0.00011897,2]
[323489203,1714048234834,-659.1754,0.00011897,2]
[323489204,1714048234845,-323.23436581,0.00011897,2]
[323489205,1714048234855,-1854.79,0.00011897,2]
[323489206,1714048234864,-500.0,0.00011897,2]
[323489207,1714048234873,-500.0,0.00011897,2]
[323489208,1714048234882,-78.07563419,0.00011897,2]
[323489209,1714048234894,-421.92436581,0.00011897,2]
[323489210,1714048234903,-7.94988609,0.00011897,2]
[323489211,1714048234914,-3536.48011391,0.00011897,2]
[323489212,1714048234923,-2551.84851717,0.00011897,2]
[323489236,1714048238538,-1985.592571,0.00011897,2]
[323489237,1714048238553,-708.7166173,0.00011897,2]
[323489238,1714048238610,-301.52429435,0.00011897,2]
[323489239,1714048238623,-524.23894768,0.00011897,2]
[323489240,1714048238671,-1121.01309545,0.00011897,2]
[323489241,1714048238682,-1471.351963,0.00011897,2]
[323489242,1714048238733,-7065.33399405,0.00011897,2]
[323489243,1714048238743,-500.0,0.00011897,2]
[323489244,1714048238753,-500.0,0.00011897,2]
[323489245,1714048238762,-1516.75,0.00011897,2]
[323489246,1714048238772,-1261.1,0.00011897,2]
[323489247,1714048238781,-500.0,0.00011897,2]
[323489248,1714048238791,-3839.72,0.00011897,2]
[323489249,1714048238800,-500.0,0.00011897,2]
[323489250,1714048238810,-500.0,0.00011897,2]
[323489251,1714048238821,-500.0,0.00011897,2]
[323489252,1714048238830,-2277.96,0.00011897,2]
[323489253,1714048238840,-500.0,0.00011897,2]
[323489254,1714048238849,-533.81,0.00011897,2]
[323489255,1714048238861,-537.38565693,0.00011897,2]
[323489256,1714048238871,-953.25,0.00011897,2]
[323489257,1714048238880,-500.0,0.00011897,2]
[323489258,1714048238889,-500.0,0.00011897,2]
[323489259,1714048238898,-4374.79,0.00011897,2]
[323489260,1714048238907,-500.0,0.00011897,2]
[323489261,1714048238917,-500.0,0.00011897,2]
[323489263,1714048238926,-500.0,0.00011897,2]
[323489265,1714048238935,-13922.02,0.00011897,2]
[323489266,1714048238944,-500.0,0.00011897,2]
[323489268,1714048238956,-500.0,0.00011897,2]
[323489270,1714048238965,-1376.24,0.00011897,2]
[323489271,1714048238975,-500.0,0.00011897,2]
[323489273,1714048238984,-87.68434901,0.00011897,2]
[323489276,1714048239029,-0.10697139,0.00011897,2]
[323489277,1714048239054,-412.2086796,0.00011897,2]
[323489278,1714048239063,-500.0,0.00011897,2]
[323489279,1714048239072,-1257.62,0.00011897,2]
[323489280,1714048239081,-96.68647744,0.00011897,2]
[323489281,1714048239116,-964.17352256,0.00011897,2]
[323489282,1714048239125,-500.0,0.00011897,2]
[323489283,1714048239134,-500.0,0.00011897,2]
[323489284,1714048239144,-500.0,0.00011897,2]
[323489285,1714048239153,-500.0,0.00011897,2]
[323489286,1714048239162,-500.0,0.00011897,2]
[323489287,1714048239171,-500.0,0.00011897,2]
[323489288,1714048239181,-500.0,0.00011897,2]
[323489289,1714048239190,-500.0,0.00011897,2]
[323489290,1714048239199,-500.0,0.00011897,2]
[323489291,1714048239212,-1333.34,0.00011897,2]
[323489292,1714048239221,-500.0,0.00011897,2]
[323489293,1714048239230,-500.0,0.00011897,2]
[323489294,1714048239239,-500.0,0.00011897,2]
[323489295,1714048239248,-500.0,0.00011897,2]
[323489296,1714048239257,-500.0,0.00011897,2]
[323489297,1714048239266,-500.0,0.00011897,2]
[323489298,1714048239275,-500.0,0.00011897,2]
[323489299,1714048239284,-500.0,0.00011897,2]
[323489300,1714048239293,-500.0,0.00011897,2]
[323489301,1714048239302,-737.31,0.00011897,2]
[323489302,1714048239311,-500.0,0.00011897,2]
[323489303,1714048239320,-500.0,0.00011897,2]
[323489304,1714048239329,-500.0,0.00011897,2]
[323489305,1714048239338,-500.0,0.00011897,2]
[323489306,1714048239347,-500.0,0.00011897,2]
[323489307,1714048239356,-500.0,0.00011897,2]
[323489308,1714048239365,-500.0,0.00011897,2]
[323489309,1714048239374,-500.0,0.00011898,2]
[323489310,1714048239383,-500.0,0.00011898,2]
[323489311,1714048239392,-500.0,0.00011898,2]
[323489312,1714048239401,-500.0,0.00011898,2]
[323489313,1714048239410,-500.0,0.00011898,2]
[323489314,1714048239419,-601.65,0.00011898,2]
[323489315,1714048239428,-500.0,0.00011898,2]
[323489316,1714048239438,-559.45904848,0.00011898,2]
[323489317,1714048239447,-500.0,0.00011898,2]
[323489318,1714048239460,-500.0,0.00011898,2]
[323489319,1714048239468,-500.0,0.00011898,2]
[323489320,1714048239477,-500.0,0.00011898,2]
[323489321,1714048239486,-500.0,0.00011898,2]
[323489322,1714048239495,-500.0,0.00011898,2]
[323489323,1714048239504,-500.0,0.00011898,2]
[323489324,1714048239513,-500.0,0.00011898,2]
[323489325,1714048239521,-197.88436077,0.00011898,2]
[323489326,1714048239530,-500.0,0.00011898,2]
[323489327,1714048239539,-535.59460736,0.00011898,2]
[323489328,1714048239551,-500.0,0.00011898,2]
[323489329,1714048239560,-500.0,0.00011898,2]
[323489330,1714048239569,-500.0,0.00011898,2]
[323489331,1714048239578,-500.0,0.00011898,2]
[323489332,1714048239588,-500.0,0.00011898,2]
[323489333,1714048239597,-500.0,0.00011898,2]
[323489334,1714048239606,-500.0,0.00011898,2]
[323489335,1714048239616,-500.0,0.00011898,2]
[323489336,1714048239626,-500.0,0.00011898,2]
[323489337,1714048239636,-500.0,0.00011898,2]
[323489338,1714048239646,-648.67347427,0.00011898,2]
[323489339,1714048239656,-500.0,0.00011898,2]
[323489340,1714048239665,-500.0,0.00011898,2]
[323489341,1714048239674,-500.0,0.00011898,2]
[323489342,1714048239684,-500.0,0.00011898,2]
[323489343,1714048239693,-576.41544385,0.00011898,2]
[323489344,1714048239704,-500.0,0.00011898,2]
[323489345,1714048239714,-500.0,0.00011898,2]
[323489346,1714048239724,-500.0,0.00011898,2]
[323489347,1714048239733,-500.0,0.00011898,2]
[323489348,1714048239742,-500.0,0.00011898,2]
[323489349,1714048239751,-500.0,0.00011898,2]
[323489350,1714048239761,-500.0,0.00011898,2]
[323489351,1714048239771,-500.0,0.00011898,2]
[323489352,1714048239780,-500.0,0.00011898,2]
[323489353,1714048239789,-603.06,0.00011898,2]
[323489354,1714048239798,-500.0,0.00011898,2]
[323489355,1714048239807,-500.0,0.00011898,2]
[323489356,1714048239816,-500.0,0.00011898,2]
[323489357,1714048239824,-500.0,0.00011898,2]
[323489358,1714048239834,-500.0,0.00011898,2]
[323489359,1714048239843,-500.0,0.00011898,2]
[323489360,1714048239852,-500.0,0.00011898,2]
[323489361,1714048239861,-500.0,0.00011898,2]
[323489362,1714048239869,-500.0,0.00011898,2]
[323489363,1714048239878,-500.0,0.00011898,2]
[323489364,1714048239888,-500.0,0.00011898,2]
[323489365,1714048239896,-500.0,0.00011898,2]
[323489366,1714048239905,-500.0,0.00011898,2]
[323489367,1714048239914,-500.0,0.00011898,2]
[323489368,1714048239923,-500.0,0.00011898,2]
[323489369,1714048239932,-562.28430417,0.00011898,2]
[323489370,1714048239941,-500.0,0.00011898,2]
[323489371,1714048239950,-503.90478931,0.00011898,2]
[323489372,1714048239965,-150.0,0.00011898,2]
[323489373,1714048239975,-500.0,0.00011898,2]
[323489374,1714048239985,-500.0,0.00011898,2]
[323489375,1714048239994,-500.0,0.00011898,2]
[323489376,1714048240003,-504.23629042,0.00011898,2]
[323489377,1714048240012,-500.0,0.00011898,2]
[323489378,1714048240022,-500.0,0.00011898,2]
[323489379,1714048240030,-500.0,0.00011898,2]
[323489380,1714048240039,-500.0,0.00011898,2]
[323489381,1714048240048,-500.0,0.00011898,2]
[323489382,1714048240057,-500.0,0.00011898,2]
[323489383,1714048240066,-500.0,0.00011898,2]
[323489384,1714048240075,-500.0,0.00011898,2]
[323489385,1714048240084,-501.7464011,0.00011898,2]
[323489386,1714048240094,-500.0,0.00011898,2]
[323489387,1714048240103,-500.0,0.00011898,2]
[323489388,1714048240112,-511.85356245,0.00011898,2]
[323489389,1714048240121,-500.0,0.00011898,2]
[323489391,1714048240131,-500.0,0.00011898,2]
[323489392,1714048240140,-500.0,0.00011898,2]
[323489393,1714048240149,-500.0,0.00011898,2]
[323489394,1714048240159,-509.38816839,0.00011898,2]
[323489395,1714048240168,-515.06408791,0.00011898,2]
[323489397,1714048240177,-500.0,0.00011898,2]
[323489398,1714048240187,-500.0,0.00011898,2]
[323489399,1714048240196,-500.0,0.00011898,2]
[323489400,1714048240210,-500.0,0.00011898,2]
[323489401,1714048240219,-500.0,0.00011898,2]
[323489402,1714048240228,-500.92474567,0.00011898,2]
[323489403,1714048240238,-227.75841082,0.00011898,2]
[323489405,1714048240247,-500.0,0.00011898,2]
[323489406,1714048240257,-500.0,0.00011898,2]
[323489407,1714048240266,-505.4239124,0.00011898,2]
[323489408,1714048240275,-500.0,0.00011898,2]
[323489409,1714048240284,-500.0,0.00011898,2]
[323489410,1714048240293,-500.0,0.00011898,2]
[323489411,1714048240302,-500.0,0.00011898,2]
[323489412,1714048240311,-500.0,0.00011898,2]
[323489413,1714048240320,-501.94152878,0.00011898,2]
[323489414,1714048240329,-501.06681004,0.00011898,2]
[323489415,1714048240339,-580.81,0.00011898,2]
[323489416,1714048240348,-502.42176914,0.00011898,2]
[323489417,1714048240357,-500.0,0.00011898,2]
[323489418,1714048240366,-507.4407832,0.00011898,2]
[323489419,1714048240375,-597.40877778,0.00011898,2]
[323489420,1714048240384,-505.2721633,0.00011898,2]
[323489421,1714048240393,-500.0,0.00011898,2]
[323489422,1714048240403,-527.46613734,0.00011898,2]
[323489423,1714048240412,-500.95004474,0.00011898,2]
[323489424,1714048240421,-460.13532042,0.00011898,2]